[Event "*** SCC Grand Prix: Titled Tuesday Blitz"]
[Site "Chess.com"]
[Date "2020.07.21"]
[Round "7"]
[White "chesstrainer2042"]
[Black "BakaPG"]
[Result "0-1"]
[WhiteElo "2473"]
[BlackElo "2655"]
[TimeControl "180+1"]
[EndTime "11:17:47 PDT"]
[Termination "BakaPG won on time"]

1. e4 {[%clk 0:03:00.9]} 1... e6 {[%clk 0:02:57]} 2. d4 {[%clk 0:03:00.5]} 2...
d5 {[%clk 0:02:56.4]} 3. Nd2 {[%clk 0:03:00.8]} 3... a6 {[%clk 0:02:54.2]} 4.
Ngf3 {[%clk 0:03:00]} 4... Nf6 {[%clk 0:02:54.1]} 5. Bd3 {[%clk 0:02:57.7]} 5...
c5 {[%clk 0:02:52.4]} 6. e5 {[%clk 0:02:57.9]} 6... Nfd7 {[%clk 0:02:51.8]} 7.
c3 {[%clk 0:02:58.4]} 7... Nc6 {[%clk 0:02:49.2]} 8. O-O {[%clk 0:02:58.4]} 8...
g5 {[%clk 0:02:48.6]} 9. dxc5 {[%clk 0:02:57]} 9... g4 {[%clk 0:02:31.5]} 10.
Nd4 {[%clk 0:02:53.8]} 10... Ncxe5 {[%clk 0:02:30.5]} 11. N2b3 {[%clk
0:02:41.2]} 11... Nxc5 {[%clk 0:02:28.4]} 12. Nxc5 {[%clk 0:02:35.9]} 12... Bxc5
{[%clk 0:02:26.9]} 13. Re1 {[%clk 0:02:36.5]} 13... Qf6 {[%clk 0:02:23.9]} 14.
Be3 {[%clk 0:02:08.6]} 14... Bd6 {[%clk 0:02:18]} 15. Bf1 {[%clk 0:01:52.7]}
15... Rg8 {[%clk 0:02:16.1]} 16. g3 {[%clk 0:01:37.4]} 16... Bd7 {[%clk
0:02:12.3]} 17. Qb3 {[%clk 0:01:07.5]} 17... b5 {[%clk 0:02:04.4]} 18. Bg2
{[%clk 0:00:58.7]} 18... Nf3+ {[%clk 0:01:51.9]} 19. Bxf3 {[%clk 0:00:43.3]}
19... gxf3 {[%clk 0:01:51.8]} 20. a4 {[%clk 0:00:43.9]} 20... Rb8 {[%clk
0:01:27.2]} 21. axb5 {[%clk 0:00:43]} 21... axb5 {[%clk 0:01:27.1]} 22. Qd1
{[%clk 0:00:37.3]} 22... b4 {[%clk 0:01:16.7]} 23. Qxf3 {[%clk 0:00:31.5]} 23...
Qxf3 {[%clk 0:01:15.1]} 24. Nxf3 {[%clk 0:00:31.8]} 24... bxc3 {[%clk
0:01:14.5]} 25. bxc3 {[%clk 0:00:32.1]} 25... Ke7 {[%clk 0:01:13.2]} 26. Ra6
{[%clk 0:00:24.5]} 26... Rb3 {[%clk 0:00:59.1]} 27. Bg5+ {[%clk 0:00:23.6]}
27... Rxg5 {[%clk 0:00:51.6]} 28. Nxg5 {[%clk 0:00:22.9]} 28... Rxc3 {[%clk
0:00:51.6]} 29. Nxf7 {[%clk 0:00:20.7]} 29... Bc5 {[%clk 0:00:47.3]} 30. Ne5
{[%clk 0:00:20.6]} 30... Bb5 {[%clk 0:00:47.3]} 31. Ra2 {[%clk 0:00:17.7]} 31...
d4 {[%clk 0:00:44.1]} 32. Kg2 {[%clk 0:00:14.8]} 32... Kd6 {[%clk 0:00:43.5]}
33. Ng4 {[%clk 0:00:11.8]} 33... Bc4 {[%clk 0:00:40.9]} 34. Rd2 {[%clk
0:00:10.6]} 34... Bd5+ {[%clk 0:00:39.5]} 35. Kg1 {[%clk 0:00:10]} 35... Ra3
{[%clk 0:00:34.3]} 36. Nf6 {[%clk 0:00:09.9]} 36... Bb4 {[%clk 0:00:33.3]} 37.
Rdd1 {[%clk 0:00:04.4]} 37... Bxe1 {[%clk 0:00:32.8]} 38. Rxe1 {[%clk
0:00:02.3]} 38... d3 {[%clk 0:00:33.1]} 39. Rd1 {[%clk 0:00:01.9]} 39... Ke5
{[%clk 0:00:32.9]} 40. Ng4+ {[%clk 0:00:01.3]} 40... Kd4 {[%clk 0:00:33]} 41.
Ne3 {[%clk 0:00:01.5]} 41... Bf3 {[%clk 0:00:32]} 0-1

[Event "*** SCC Grand Prix: Titled Tuesday Blitz"]
[Site "Chess.com"]
[Date "2020.07.21"]
[Round "7"]
[White "AldokhinIvan"]
[Black "davigator"]
[Result "1-0"]
[WhiteElo "2577"]
[BlackElo "2346"]
[TimeControl "180+1"]
[EndTime "11:17:48 PDT"]
[Termination "AldokhinIvan won on time"]

1. e4 {[%clk 0:03:00.9]} 1... c5 {[%clk 0:02:59.3]} 2. Nf3 {[%clk 0:03:01.1]}
2... Nc6 {[%clk 0:02:58.3]} 3. d4 {[%clk 0:03:01.7]} 3... cxd4 {[%clk 0:02:58]}
4. Nxd4 {[%clk 0:03:02.4]} 4... Nf6 {[%clk 0:02:58]} 5. Nc3 {[%clk 0:03:02]}
5... d6 {[%clk 0:02:57.9]} 6. Bg5 {[%clk 0:02:58.7]} 6... a6 {[%clk 0:02:56.5]}
7. Bxf6 {[%clk 0:02:56.3]} 7... gxf6 {[%clk 0:02:54.9]} 8. Qd2 {[%clk
0:02:56.8]} 8... h5 {[%clk 0:02:54.4]} 9. h4 {[%clk 0:02:46.4]} 9... e6 {[%clk
0:02:36.8]} 10. g3 {[%clk 0:02:36.9]} 10... Bd7 {[%clk 0:02:36.3]} 11. O-O-O
{[%clk 0:02:36.2]} 11... b5 {[%clk 0:02:29.9]} 12. Kb1 {[%clk 0:02:27.7]} 12...
Rb8 {[%clk 0:02:26.3]} 13. f4 {[%clk 0:02:04.6]} 13... Qb6 {[%clk 0:02:15.5]}
14. Nf5 {[%clk 0:01:37.7]} 14... exf5 {[%clk 0:01:37.8]} 15. Nd5 {[%clk
0:01:37.2]} 15... Qd8 {[%clk 0:01:37.6]} 16. exf5 {[%clk 0:01:37.2]} 16... Be7
{[%clk 0:01:32.6]} 17. Bg2 {[%clk 0:01:15.7]} 17... Kf8 {[%clk 0:01:32]} 18.
Nxe7 {[%clk 0:01:05.8]} 18... Qxe7 {[%clk 0:01:01.3]} 19. Rhe1 {[%clk
0:01:04.9]} 19... Ne5 {[%clk 0:00:59.9]} 20. fxe5 {[%clk 0:01:03.3]} 20... fxe5
{[%clk 0:00:58.5]} 21. f6 {[%clk 0:00:47.8]} 21... Qxf6 {[%clk 0:00:53.2]} 22.
Rf1 {[%clk 0:00:47.6]} 22... Qg6 {[%clk 0:00:46.4]} 23. Qxd6+ {[%clk 0:00:21.2]}
23... Qxd6 {[%clk 0:00:45.4]} 24. Rxd6 {[%clk 0:00:22.1]} 24... Ke7 {[%clk
0:00:37.6]} 25. Rxa6 {[%clk 0:00:20.4]} 25... Be6 {[%clk 0:00:37.3]} 26. Ra7+
{[%clk 0:00:19.6]} 26... Kf8 {[%clk 0:00:31]} 27. Rf6 {[%clk 0:00:19.3]} 27...
Rg8 {[%clk 0:00:25.7]} 28. Rf3 {[%clk 0:00:16.3]} 28... Rg4 {[%clk 0:00:20.5]}
29. a3 {[%clk 0:00:13]} 29... Rd4 {[%clk 0:00:18.1]} 30. b3 {[%clk 0:00:09]}
30... Rd2 {[%clk 0:00:14.6]} 31. Bh3 {[%clk 0:00:08.2]} 31... Bxh3 {[%clk
0:00:10.5]} 32. Rfxf7+ {[%clk 0:00:08.2]} 32... Ke8 {[%clk 0:00:07.1]} 33. Rh7
{[%clk 0:00:07]} 33... Rf2 {[%clk 0:00:06.2]} 34. Rae7+ {[%clk 0:00:04.8]} 34...
Kd8 {[%clk 0:00:06.3]} 35. Rxe5 {[%clk 0:00:03.2]} 35... Rb6 {[%clk 0:00:01.2]}
36. Rh8+ {[%clk 0:00:03]} 1-0

[Event "*** SCC Grand Prix: Titled Tuesday Blitz"]
[Site "Chess.com"]
[Date "2020.07.21"]
[Round "7"]
[White "Duong57"]
[Black "sergeikim"]
[Result "0-1"]
[WhiteElo "2303"]
[BlackElo "2452"]
[TimeControl "180+1"]
[EndTime "11:17:48 PDT"]
[Termination "sergeikim won on time"]

1. d4 {[%clk 0:03:00.9]} 1... Nf6 {[%clk 0:02:59.1]} 2. c4 {[%clk 0:03:00.3]}
2... g6 {[%clk 0:02:59.2]} 3. Nc3 {[%clk 0:02:58.3]} 3... Bg7 {[%clk 0:02:59.3]}
4. e4 {[%clk 0:02:58.5]} 4... d6 {[%clk 0:02:59.5]} 5. Nf3 {[%clk 0:02:59.1]}
5... O-O {[%clk 0:02:59.3]} 6. Be2 {[%clk 0:02:59.7]} 6... e5 {[%clk 0:02:59.1]}
7. O-O {[%clk 0:03:00.3]} 7... exd4 {[%clk 0:02:59.2]} 8. Nxd4 {[%clk 0:03:00]}
8... Re8 {[%clk 0:02:59.4]} 9. f3 {[%clk 0:02:59.2]} 9... Nbd7 {[%clk
0:02:59.4]} 10. Re1 {[%clk 0:02:59.2]} 10... c6 {[%clk 0:02:59.3]} 11. Bf1
{[%clk 0:02:57.3]} 11... a5 {[%clk 0:02:58.6]} 12. Be3 {[%clk 0:02:57]} 12...
Nc5 {[%clk 0:02:56.4]} 13. Qd2 {[%clk 0:02:49.6]} 13... a4 {[%clk 0:02:55.9]}
14. Rad1 {[%clk 0:02:49.3]} 14... Qa5 {[%clk 0:02:55.4]} 15. Nc2 {[%clk
0:02:44.2]} 15... Re6 {[%clk 0:02:54.5]} 16. Nd4 {[%clk 0:02:23]} 16... Re8
{[%clk 0:02:53.6]} 17. Nde2 {[%clk 0:02:15.7]} 17... Bf8 {[%clk 0:02:46.4]} 18.
Bd4 {[%clk 0:01:45.2]} 18... Nfd7 {[%clk 0:02:45]} 19. Ng3 {[%clk 0:01:14.2]}
19... Ne5 {[%clk 0:02:39.6]} 20. f4 {[%clk 0:01:12.9]} 20... Ned7 {[%clk
0:02:30.6]} 21. e5 {[%clk 0:01:06.1]} 21... dxe5 {[%clk 0:02:26.9]} 22. fxe5
{[%clk 0:01:05.7]} 22... Bg7 {[%clk 0:02:21.5]} 23. Nce4 {[%clk 0:00:42.6]}
23... Qxd2 {[%clk 0:02:06.8]} 24. Rxd2 {[%clk 0:00:43.5]} 24... Nxe4 {[%clk
0:02:03.5]} 25. Nxe4 {[%clk 0:00:41.9]} 25... Nf8 {[%clk 0:01:27.3]} 26. Nd6
{[%clk 0:00:24.8]} 26... Re7 {[%clk 0:01:27.1]} 27. Bc3 {[%clk 0:00:24.5]} 27...
Nd7 {[%clk 0:01:19.6]} 28. Red1 {[%clk 0:00:12.6]} 28... Nxe5 {[%clk 0:01:07.7]}
29. Nxc8 {[%clk 0:00:12.1]} 29... Rxc8 {[%clk 0:01:07]} 30. Rd8+ {[%clk
0:00:10.2]} 30... Re8 {[%clk 0:01:07.2]} 31. Rxc8 {[%clk 0:00:09.8]} 31... Rxc8
{[%clk 0:01:06.5]} 32. Re1 {[%clk 0:00:09.8]} 32... Re8 {[%clk 0:00:55]} 33. c5
{[%clk 0:00:09.3]} 33... f6 {[%clk 0:00:51]} 34. Rd1 {[%clk 0:00:08.5]} 34...
Kf8 {[%clk 0:00:48.1]} 35. Kf2 {[%clk 0:00:08]} 35... Ke7 {[%clk 0:00:46.7]} 36.
Bxe5 {[%clk 0:00:06.1]} 36... fxe5 {[%clk 0:00:46.1]} 37. Bc4 {[%clk 0:00:06.8]}
37... e4 {[%clk 0:00:43.7]} 38. b3 {[%clk 0:00:05.2]} 38... Bh6 {[%clk
0:00:38.4]} 39. Ke2 {[%clk 0:00:04.8]} 39... Rf8 {[%clk 0:00:34.9]} 40. Rd4
{[%clk 0:00:02.5]} 40... e3 {[%clk 0:00:33.8]} 41. Re4+ {[%clk 0:00:02.7]} 41...
Kd7 {[%clk 0:00:33.2]} 42. Rh4 {[%clk 0:00:02.8]} 42... Bg5 {[%clk 0:00:30.3]}
43. Rxh7+ {[%clk 0:00:02.5]} 43... Kc8 {[%clk 0:00:29.4]} 44. Be6+ {[%clk
0:00:02.2]} 44... Kb8 {[%clk 0:00:29]} 45. Bf7 {[%clk 0:00:02.5]} 45... Rd8
{[%clk 0:00:28]} 0-1

[Event "*** SCC Grand Prix: Titled Tuesday Blitz"]
[Site "Chess.com"]
[Date "2020.07.21"]
[Round "7"]
[White "chesslh19"]
[Black "Irochka83"]
[Result "0-1"]
[WhiteElo "2171"]
[BlackElo "2351"]
[TimeControl "180+1"]
[EndTime "11:17:48 PDT"]
[Termination "Irochka83 won on time"]

1. e4 {[%clk 0:03:00.9]} 1... c5 {[%clk 0:02:59.7]} 2. Nf3 {[%clk 0:02:59.9]}
2... e6 {[%clk 0:02:58.3]} 3. d4 {[%clk 0:03:00.2]} 3... cxd4 {[%clk 0:02:59]}
4. Nxd4 {[%clk 0:03:01]} 4... Nc6 {[%clk 0:02:59.3]} 5. Nb5 {[%clk 0:03:00.7]}
5... d6 {[%clk 0:02:58.3]} 6. c4 {[%clk 0:03:01.3]} 6... a6 {[%clk 0:02:58]} 7.
Nd4 {[%clk 0:03:01.6]} 7... Nf6 {[%clk 0:02:56.9]} 8. Nc3 {[%clk 0:03:02.1]}
8... Be7 {[%clk 0:02:52.6]} 9. Be2 {[%clk 0:03:02.6]} 9... O-O {[%clk
0:02:51.8]} 10. O-O {[%clk 0:03:03.1]} 10... Nxd4 {[%clk 0:02:48.9]} 11. Qxd4
{[%clk 0:03:02.7]} 11... Bd7 {[%clk 0:02:48.2]} 12. Be3 {[%clk 0:02:50.6]} 12...
Bc6 {[%clk 0:02:44.8]} 13. Rfd1 {[%clk 0:02:45.4]} 13... a5 {[%clk 0:01:47.4]}
14. f3 {[%clk 0:02:37.2]} 14... Nd7 {[%clk 0:01:45.3]} 15. Nb5 {[%clk
0:01:54.1]} 15... Bxb5 {[%clk 0:01:44.2]} 16. cxb5 {[%clk 0:01:53.2]} 16... Nc5
{[%clk 0:01:42.4]} 17. Rac1 {[%clk 0:01:25.1]} 17... Qc7 {[%clk 0:01:25.5]} 18.
Qc4 {[%clk 0:01:14.9]} 18... b6 {[%clk 0:01:07.9]} 19. b3 {[%clk 0:01:00.7]}
19... Rac8 {[%clk 0:01:07.6]} 20. a3 {[%clk 0:00:51.2]} 20... Qb7 {[%clk
0:01:07.8]} 21. Qc2 {[%clk 0:00:40.3]} 21... Rfd8 {[%clk 0:01:02.8]} 22. b4
{[%clk 0:00:36.7]} 22... axb4 {[%clk 0:01:01.4]} 23. axb4 {[%clk 0:00:37.6]}
23... Nd7 {[%clk 0:01:01.6]} 24. Qb3 {[%clk 0:00:30.7]} 24... Nf6 {[%clk
0:01:00.6]} 25. Qb2 {[%clk 0:00:16.9]} 25... d5 {[%clk 0:00:59.7]} 26. Rxc8
{[%clk 0:00:13.8]} 26... Rxc8 {[%clk 0:00:58.9]} 27. e5 {[%clk 0:00:11.4]} 27...
Nd7 {[%clk 0:00:58.4]} 28. Bd4 {[%clk 0:00:10.7]} 28... Qc7 {[%clk 0:00:55.3]}
29. h3 {[%clk 0:00:06.7]} 29... g6 {[%clk 0:00:51.7]} 30. Rd3 {[%clk 0:00:06.7]}
30... Qc1+ {[%clk 0:00:49.8]} 31. Qxc1 {[%clk 0:00:06.6]} 31... Rxc1+ {[%clk
0:00:50.7]} 32. Kh2 {[%clk 0:00:07.3]} 32... Bxb4 {[%clk 0:00:49.1]} 33. Rb3
{[%clk 0:00:07]} 33... Bc5 {[%clk 0:00:49.1]} 34. Bb2 {[%clk 0:00:03.1]} 34...
Re1 {[%clk 0:00:40.5]} 35. Bd3 {[%clk 0:00:02.5]} 35... Nxe5 {[%clk 0:00:36.4]}
36. Bxe5 {[%clk 0:00:02.7]} 36... Rxe5 {[%clk 0:00:35.8]} 37. Rb2 {[%clk
0:00:02.8]} 37... Re3 {[%clk 0:00:32.4]} 38. Bf1 {[%clk 0:00:02]} 38... h5
{[%clk 0:00:30.3]} 39. Re2 {[%clk 0:00:02]} 39... Rb3 {[%clk 0:00:29.7]} 40. Ra2
{[%clk 0:00:02]} 40... h4 {[%clk 0:00:28.3]} 41. Ra8+ {[%clk 0:00:02]} 41... Kg7
{[%clk 0:00:28.1]} 42. Ra2 {[%clk 0:00:01.5]} 42... Rb1 {[%clk 0:00:25.9]} 43.
Bd3 {[%clk 0:00:01.7]} 43... Bg1+ {[%clk 0:00:21.2]} 44. Kh1 {[%clk 0:00:01.4]}
44... Re1 {[%clk 0:00:20.2]} 45. Re2 {[%clk 0:00:01.2]} 45... Ra1 {[%clk
0:00:20.2]} 0-1

[Event "*** SCC Grand Prix: Titled Tuesday Blitz"]
[Site "Chess.com"]
[Date "2020.07.21"]
[Round "7"]
[White "denispopov"]
[Black "mirochka"]
[Result "0-1"]
[WhiteElo "1803"]
[BlackElo "2141"]
[TimeControl "180+1"]
[EndTime "11:17:48 PDT"]
[Termination "mirochka won on time"]

1. e4 {[%clk 0:03:00.9]} 1... c5 {[%clk 0:02:59.6]} 2. Nc3 {[%clk 0:03:00.4]}
2... Nc6 {[%clk 0:02:59.3]} 3. Bb5 {[%clk 0:03:00.9]} 3... Nd4 {[%clk 0:02:50]}
4. Nf3 {[%clk 0:03:00.4]} 4... a6 {[%clk 0:02:38.7]} 5. Bd3 {[%clk 0:02:49.7]}
5... g6 {[%clk 0:02:31]} 6. Nxd4 {[%clk 0:02:45.5]} 6... cxd4 {[%clk 0:02:31.9]}
7. Ne2 {[%clk 0:02:46.1]} 7... Bg7 {[%clk 0:02:31.4]} 8. b3 {[%clk 0:02:44.8]}
8... d5 {[%clk 0:02:19]} 9. Bb2 {[%clk 0:02:34.5]} 9... dxe4 {[%clk 0:02:18.7]}
10. Bxe4 {[%clk 0:02:35.4]} 10... e5 {[%clk 0:02:17.8]} 11. d3 {[%clk
0:01:47.9]} 11... Nf6 {[%clk 0:02:13.7]} 12. Bf3 {[%clk 0:01:47.5]} 12... O-O
{[%clk 0:02:08.6]} 13. O-O {[%clk 0:01:46.2]} 13... Rb8 {[%clk 0:01:51.6]} 14.
a4 {[%clk 0:01:35.2]} 14... Be6 {[%clk 0:01:38.7]} 15. Re1 {[%clk 0:01:30.1]}
15... Re8 {[%clk 0:01:36.9]} 16. Ng3 {[%clk 0:01:19.4]} 16... Nd5 {[%clk
0:01:34.3]} 17. Ne4 {[%clk 0:01:14.9]} 17... Rc8 {[%clk 0:01:28.3]} 18. Qd2
{[%clk 0:01:07.9]} 18... h6 {[%clk 0:01:17.7]} 19. Ba3 {[%clk 0:01:03.6]} 19...
Rc6 {[%clk 0:01:17]} 20. Nc5 {[%clk 0:01:01.7]} 20... Bc8 {[%clk 0:01:14.4]} 21.
b4 {[%clk 0:00:40]} 21... b6 {[%clk 0:01:09.8]} 22. Ne4 {[%clk 0:00:39.4]} 22...
Qc7 {[%clk 0:00:46.3]} 23. Rec1 {[%clk 0:00:27.9]} 23... Qd8 {[%clk 0:00:23.1]}
24. Bb2 {[%clk 0:00:26.5]} 24... f5 {[%clk 0:00:20]} 25. Ng3 {[%clk 0:00:26.2]}
25... Kh7 {[%clk 0:00:19.3]} 26. h3 {[%clk 0:00:21.6]} 26... b5 {[%clk
0:00:18.9]} 27. axb5 {[%clk 0:00:21.3]} 27... axb5 {[%clk 0:00:19.5]} 28. Ra8
{[%clk 0:00:21.3]} 28... Qd7 {[%clk 0:00:18.3]} 29. Ra5 {[%clk 0:00:18.6]} 29...
Rd6 {[%clk 0:00:17.9]} 30. Re1 {[%clk 0:00:13.6]} 30... Bb7 {[%clk 0:00:18]} 31.
Ra7 {[%clk 0:00:12.9]} 31... Qc8 {[%clk 0:00:17.2]} 32. Rea1 {[%clk 0:00:11.7]}
32... Bc6 {[%clk 0:00:16.9]} 33. R7a6 {[%clk 0:00:10.7]} 33... Red8 {[%clk
0:00:15.5]} 34. R1a5 {[%clk 0:00:08.5]} 34... Be8 {[%clk 0:00:14.1]} 35. Rxd6
{[%clk 0:00:07.8]} 35... Rxd6 {[%clk 0:00:14.8]} 36. Ba3 {[%clk 0:00:06.1]}
36... Nf4 {[%clk 0:00:14.6]} 37. Ne2 {[%clk 0:00:05.7]} 37... Nxe2+ {[%clk
0:00:13.3]} 38. Qxe2 {[%clk 0:00:06.6]} 38... Re6 {[%clk 0:00:13]} 39. Ra8
{[%clk 0:00:05.8]} 39... Qc7 {[%clk 0:00:11.9]} 40. Ra5 {[%clk 0:00:04.3]} 40...
Qc3 {[%clk 0:00:11.5]} 0-1

[Event "*** SCC Grand Prix: Titled Tuesday Blitz"]
[Site "Chess.com"]
[Date "2020.07.21"]
[Round "7"]
[White "Grandelicious"]
[Black "Artyom_ChessMate"]
[Result "0-1"]
[WhiteElo "2783"]
[BlackElo "2603"]
[TimeControl "180+1"]
[EndTime "11:17:49 PDT"]
[Termination "Artyom_ChessMate won on time"]

1. Nf3 {[%clk 0:03:00.9]} 1... d5 {[%clk 0:03:00.1]} 2. g3 {[%clk 0:03:01.1]}
2... e6 {[%clk 0:03:00.6]} 3. Bg2 {[%clk 0:03:00.5]} 3... Nf6 {[%clk 0:03:01.5]}
4. b3 {[%clk 0:02:59.9]} 4... Be7 {[%clk 0:03:01.7]} 5. Bb2 {[%clk 0:03:00.2]}
5... O-O {[%clk 0:03:02.3]} 6. c4 {[%clk 0:03:00.5]} 6... b6 {[%clk 0:03:01.4]}
7. O-O {[%clk 0:02:54.5]} 7... Bb7 {[%clk 0:03:01.5]} 8. cxd5 {[%clk 0:02:47.6]}
8... Nxd5 {[%clk 0:03:02.4]} 9. Nc3 {[%clk 0:02:45.8]} 9... Nd7 {[%clk
0:02:51.9]} 10. Rc1 {[%clk 0:02:27.3]} 10... c5 {[%clk 0:02:35.4]} 11. d4 {[%clk
0:02:17.8]} 11... Rc8 {[%clk 0:02:30.2]} 12. Nxd5 {[%clk 0:02:03]} 12... Bxd5
{[%clk 0:02:28.3]} 13. Qd3 {[%clk 0:02:01.3]} 13... Nf6 {[%clk 0:02:15.8]} 14.
dxc5 {[%clk 0:01:58.2]} 14... Rxc5 {[%clk 0:02:06.7]} 15. Rxc5 {[%clk
0:01:52.4]} 15... Bxc5 {[%clk 0:02:04.9]} 16. Rd1 {[%clk 0:01:47.1]} 16... Qa8
{[%clk 0:01:58.2]} 17. Bxf6 {[%clk 0:01:12.2]} 17... gxf6 {[%clk 0:01:59.1]} 18.
Ne1 {[%clk 0:01:11.6]} 18... Bxg2 {[%clk 0:01:34.6]} 19. Nxg2 {[%clk 0:01:12.5]}
19... Be7 {[%clk 0:01:35.1]} 20. Rc1 {[%clk 0:01:07.1]} 20... Rd8 {[%clk
0:01:32.7]} 21. Qc2 {[%clk 0:00:53.7]} 21... Ba3 {[%clk 0:01:11.5]} 22. Rd1
{[%clk 0:00:51.6]} 22... Rxd1+ {[%clk 0:01:08.5]} 23. Qxd1 {[%clk 0:00:52.5]}
23... Qe4 {[%clk 0:01:08.4]} 24. Ne1 {[%clk 0:00:49.8]} 24... Bc5 {[%clk
0:00:48.5]} 25. Nd3 {[%clk 0:00:41.9]} 25... Qd4 {[%clk 0:00:44.2]} 26. Qc1
{[%clk 0:00:34.5]} 26... e5 {[%clk 0:00:37.7]} 27. Qc2 {[%clk 0:00:22.1]} 27...
e4 {[%clk 0:00:28.5]} 28. Nxc5 {[%clk 0:00:22.1]} 28... bxc5 {[%clk 0:00:29.4]}
29. Qc1 {[%clk 0:00:09.9]} 29... Kg7 {[%clk 0:00:23]} 30. Kg2 {[%clk 0:00:09.2]}
30... a5 {[%clk 0:00:22.2]} 31. h4 {[%clk 0:00:08.7]} 31... Qd5 {[%clk
0:00:16.1]} 32. Qe3 {[%clk 0:00:03.6]} 32... h6 {[%clk 0:00:12.4]} 33. Kg1
{[%clk 0:00:02.8]} 33... Qd1+ {[%clk 0:00:11.4]} 34. Kg2 {[%clk 0:00:02.9]}
34... Qd5 {[%clk 0:00:12.3]} 35. Kh2 {[%clk 0:00:03.4]} 35... f5 {[%clk
0:00:12.7]} 36. Kg2 {[%clk 0:00:03.7]} 36... Kg6 {[%clk 0:00:09.6]} 37. Kh2
{[%clk 0:00:02.5]} 37... Kg7 {[%clk 0:00:07.6]} 38. Qc3+ {[%clk 0:00:01.3]}
38... Qd4 {[%clk 0:00:06.3]} 0-1

[Event "*** SCC Grand Prix: Titled Tuesday Blitz"]
[Site "Chess.com"]
[Date "2020.07.21"]
[Round "7"]
[White "124chess"]
[Black "nikitakhoroshev"]
[Result "1-0"]
[WhiteElo "2692"]
[BlackElo "2539"]
[TimeControl "180+1"]
[EndTime "11:17:49 PDT"]
[Termination "124chess won by resignation"]

1. b3 {[%clk 0:03:00.9]} 1... a5 {[%clk 0:02:59.3]} 2. Bb2 {[%clk 0:03:01.8]}
2... a4 {[%clk 0:02:59.7]} 3. b4 {[%clk 0:02:56.4]} 3... e6 {[%clk 0:02:59.4]}
4. a3 {[%clk 0:02:56.6]} 4... Nf6 {[%clk 0:02:58.2]} 5. Nf3 {[%clk 0:02:54.6]}
5... d5 {[%clk 0:02:57.5]} 6. e3 {[%clk 0:02:55]} 6... c5 {[%clk 0:02:56]} 7.
bxc5 {[%clk 0:02:53.9]} 7... Bxc5 {[%clk 0:02:56.9]} 8. c4 {[%clk 0:02:54.6]}
8... Nc6 {[%clk 0:02:52.6]} 9. cxd5 {[%clk 0:02:50.4]} 9... exd5 {[%clk
0:02:49.4]} 10. Nc3 {[%clk 0:02:48.5]} 10... Qa5 {[%clk 0:02:46.2]} 11. Bb5
{[%clk 0:02:37.8]} 11... O-O {[%clk 0:02:38]} 12. O-O {[%clk 0:02:36.3]} 12...
Ne4 {[%clk 0:02:33.1]} 13. Be2 {[%clk 0:02:22.3]} 13... Be7 {[%clk 0:02:23.6]}
14. Nb5 {[%clk 0:01:57.1]} 14... Be6 {[%clk 0:02:13.5]} 15. Nbd4 {[%clk
0:01:56.5]} 15... Nxd4 {[%clk 0:02:07.5]} 16. Bxd4 {[%clk 0:01:57.4]} 16... Nc5
{[%clk 0:02:03.8]} 17. Bc3 {[%clk 0:01:50.5]} 17... Qd8 {[%clk 0:01:59.7]} 18.
Nd4 {[%clk 0:01:51.1]} 18... Bd7 {[%clk 0:01:50.8]} 19. Bb4 {[%clk 0:01:50.8]}
19... Ne4 {[%clk 0:01:34.1]} 20. Bxe7 {[%clk 0:01:39.1]} 20... Qxe7 {[%clk
0:01:35]} 21. Bf3 {[%clk 0:01:39.9]} 21... Rfc8 {[%clk 0:01:31.8]} 22. Bxe4
{[%clk 0:01:28.4]} 22... dxe4 {[%clk 0:01:32.7]} 23. Qb1 {[%clk 0:01:27.6]}
23... b5 {[%clk 0:01:30.6]} 24. Qb2 {[%clk 0:01:13.9]} 24... Rab8 {[%clk
0:01:25.3]} 25. Nc2 {[%clk 0:01:11.6]} 25... Qd6 {[%clk 0:01:19.9]} 26. Nb4
{[%clk 0:01:11.2]} 26... Be6 {[%clk 0:01:18.9]} 27. f3 {[%clk 0:01:02.9]} 27...
Rd8 {[%clk 0:01:15.2]} 28. Rf2 {[%clk 0:00:52.3]} 28... f5 {[%clk 0:01:12.5]}
29. fxe4 {[%clk 0:00:45.2]} 29... fxe4 {[%clk 0:01:13.4]} 30. Raf1 {[%clk
0:00:36.4]} 30... Bc4 {[%clk 0:01:13.1]} 31. Rc1 {[%clk 0:00:29.6]} 31... Rf8
{[%clk 0:01:12.1]} 32. Rxf8+ {[%clk 0:00:14.9]} 32... Rxf8 {[%clk 0:01:13]} 33.
Qd4 {[%clk 0:00:15.4]} 33... Qxd4 {[%clk 0:01:10.9]} 34. exd4 {[%clk 0:00:16.3]}
34... Rd8 {[%clk 0:01:11.2]} 35. Kf2 {[%clk 0:00:16.4]} 35... Rxd4 {[%clk
0:01:09.7]} 36. Ke3 {[%clk 0:00:17]} 36... Rd6 {[%clk 0:01:09.9]} 37. Rc2 {[%clk
0:00:15.7]} 37... Re6 {[%clk 0:01:05.4]} 38. Rc1 {[%clk 0:00:14.7]} 38... Kf7
{[%clk 0:01:04.6]} 39. Nc2 {[%clk 0:00:14.7]} 39... Rd6 {[%clk 0:00:50.4]} 40.
Nd4 {[%clk 0:00:14.6]} 40... Bd3 {[%clk 0:00:48.7]} 41. Rc7+ {[%clk 0:00:13.8]}
41... Kg6 {[%clk 0:00:49]} 42. Rb7 {[%clk 0:00:11.2]} 42... Rd5 {[%clk
0:00:46.9]} 43. g4 {[%clk 0:00:10.8]} 43... h5 {[%clk 0:00:46.3]} 44. h3 {[%clk
0:00:11.2]} 44... hxg4 {[%clk 0:00:46.2]} 45. hxg4 {[%clk 0:00:12.1]} 45... Rg5
{[%clk 0:00:44]} 46. Kf4 {[%clk 0:00:11.4]} 46... Rd5 {[%clk 0:00:43]} 47. Nf5
{[%clk 0:00:11.2]} 47... Kf6 {[%clk 0:00:37.9]} 48. g5+ {[%clk 0:00:10.4]} 48...
Kg6 {[%clk 0:00:34.5]} 49. Ne7+ {[%clk 0:00:09.4]} 1-0